[Event "DLM Youth 2024"]
[Site "Tuebingen"]
[Date "2024.10.04"]
[Round "4"]
[White "Haubold, Sebastian"]
[Black "Butenandt, Svenja"]
[Result "1/2-1/2"]
[ECO "B15"]
[WhiteElo "2030"]
[BlackElo "2121"]
[Annotator "RC"]
[PlyCount "49"]
[EventDate "2024.10.03"]
[EventType "team-swiss"]
[EventRounds "7"]
[EventCountry "GER"]
[SourceTitle "playchess.com"]
[Source "ChessBase"]
[SourceQuality "1"]
[TimeControl "40/5400+30:1800+30"]

1. e4 {[%emt 0:00:03]} c6 {[%emt 0:00:05]} 2. d4 {[%emt 0:00:06]} d5 {[%emt 0:00:04]} 3. Nd2 {[%emt 0:00:06]} dxe4 {[%emt 0:00:05]} 4. Nxe4 {[%emt 0:00:05]} Nf6 {[%emt 0:00:07]} 5. Nxf6+ {[%emt 0:00:07]} exf6 {[%emt 0:00:04]} 6. c3 {[%emt 0:00:10]} Bd6 {[%emt 0:00:05]} 7. Bd3 {[%emt 0:00:07]} O-O {[%emt 0:00:16]} 8. Qc2 {[%emt 0:00:26]} Re8+ {[%emt 0:00:04]} 9. Ne2 {[%emt 0:00:08]} h5 {[%emt 0:00:06]} 10. O-O {[%emt 0:00:44]} h4 {[%emt 0:02:50]} 11. h3 {[%emt 0:00:15]} Nd7 {[%emt 0:01:19]} 12. Bd2 {[%emt 0:00:22]} Nf8 {[%emt 0:01:02]} 13. Rae1 {[%emt 0:00:22]} Bc7 {[%emt 0:12:57]} 14. f4 {[%emt 0:00:32]} g6 {[%emt 0:06:01]} 15. c4 {[%emt 0:08:45]} Ne6 {[%emt 0:16:38]} 16. Bc3 {[%emt 0:11:33]} Ng7 {[%emt 0:01:57]} 17. b3 {[%emt 0:09:55]} Bf5 {[%emt 0:06:26]} 18. Rf3 {[%emt 0:09:19]} Qd7 {[%emt 0:02:53]} 19. Bxf5 {[%emt 0:05:38]} Nxf5 {[%emt 0:00:51]} 20. Qd2 {[%emt 0:05:30]} Re4 {[%emt 0:06:13]} 21. Nc1 {[%emt 0:20:54]} Rxe1+ {[%emt 0:19:31]} 22. Qxe1 {[%emt 0:00:11]} Nxd4 {[%emt 0:00:23]} 23. Rd3 {[%emt 0:00:59]} c5 {[%emt 0:00:57]} 24. Bxd4 {[%emt 0:02:58]} cxd4 {[%emt 0:01:01]} 25. Qxh4 {[%emt 0:00:09]} 1/2-1/2

[Event "DLM Youth 2024"]
[Site "Tuebingen"]
[Date "2024.10.04"]
[Round "4"]
[White "Mueller, Maximilian"]
[Black "Albrecht, Neil"]
[Result "1/2-1/2"]
[ECO "B90"]
[WhiteElo "2030"]
[BlackElo "1997"]
[Annotator "RC"]
[PlyCount "78"]
[EventDate "2024.10.03"]
[EventType "team-swiss"]
[EventRounds "7"]
[EventCountry "GER"]
[SourceTitle "playchess.com"]
[Source "ChessBase"]
[SourceQuality "1"]
[TimeControl "40/5400+30:1800+30"]

1. e4 {[%emt 0:00:02]} c5 {[%emt 0:00:05]} 2. Nf3 {[%emt 0:00:04]} d6 {[%emt 0:00:12]} 3. d4 {[%emt 0:00:57]} cxd4 {[%emt 0:00:06]} 4. Nxd4 {[%emt 0:00:03]} Nf6 {[%emt 0:00:05]} 5. Nc3 {[%emt 0:00:03]} a6 {[%emt 0:00:05]} 6. Rg1 {[%emt 0:00:02]} e5 {[%emt 0:07:14]} 7. Nb3 {[%emt 0:00:02]} h5 {[%emt 0:03:12]} 8. h3 {[%emt 0:02:09]} Be6 {[%emt 0:02:29]} 9. Be3 {[%emt 0:05:28]} Be7 {[%emt 0:02:10]} 10. Be2 {[%emt 0:04:42]} h4 {[%emt 0:02:16]} 11. Qd2 {[%emt 0:07:30]} Nbd7 {[%emt 0:04:56]} 12. Bf3 {[%emt 0:04:05]} Nb6 {[%emt 0:02:58]} 13. Bxb6 {[%emt 0:02:04]} Qxb6 {[%emt 0:00:43]} 14. Nd5 {[%emt 0:00:02]} Nxd5 {[%emt 0:02:59]} 15. exd5 {[%emt 0:00:08]} Bf5 {[%emt 0:00:21]} 16. c3 {[%emt 0:02:10]} a5 {[%emt 0:09:15]} 17. Qe3 {[%emt 0:06:35]} Qd8 {[%emt 0:05:08]} 18. a4 {[%emt 0:11:49]} Bg5 {[%emt 0:03:13]} 19. Qe2 {[%emt 0:00:38]} Qb6 {[%emt 0:04:38]} 20. Qb5+ {[%emt 0:00:38]} Qxb5 {[%emt 0:00:06]} 21. axb5 {[%emt 0:00:03]} b6 {[%emt 0:01:12]} 22. Nd2 {[%emt 0:00:23]} Bxd2+ {[%emt 0:06:22]} 23. Kxd2 {[%emt 0:00:02]} Bd7 {[%emt 0:00:19]} 24. Be2 {[%emt 0:01:00]} Ke7 {[%emt 0:01:19]} 25. Ra4 {[%emt 0:00:15]} f5 {[%emt 0:02:04]} 26. Rga1 {[%emt 0:00:07]} Ra7 {[%emt 0:08:33]} 27. b4 {[%emt 0:05:17]} Rha8 {[%emt 0:01:14]} 28. Kc2 {[%emt 0:07:37]} Kd8 {[%emt 0:02:12]} 29. Kb3 {[%emt 0:00:40]} Kc7 {[%emt 0:01:01]} 30. bxa5 {[%emt 0:10:21]} Rxa5 {[%emt 0:00:10]} 31. Rc4+ {[%emt 0:00:20]} Kd8 {[%emt 0:01:42]} 32. Rxa5 {[%emt 0:00:05]} Rxa5 {[%emt 0:00:05]} 33. Rxh4 {[%emt 0:00:06]} Bxb5 {[%emt 0:01:19]} 34. c4 {[%emt 0:00:07]} Ba4+ {[%emt 0:01:47]} 35. Kc3 {[%emt 0:00:27]} Be8 {[%emt 0:00:35]} 36. Kb2 {[%emt 0:02:22]} Ke7 {[%emt 0:03:56]} 37. Rh7 {[%emt 0:00:05]} Kf7 {[%emt 0:02:11]} 38. Rh5 {[%emt 0:00:20]} Kf6 {[%emt 0:00:44]} 39. Rh8 {[%emt 0:00:08]} Ke7 {[%emt 0:00:10]} 1/2-1/2

[Event "DLM Youth 2024"]
[Site "Tuebingen"]
[Date "2024.10.04"]
[Round "4"]
[White "Kieselbach, Jannik"]
[Black "Fischer, Darja"]
[Result "1/2-1/2"]
[ECO "B11"]
[WhiteElo "2014"]
[BlackElo "1872"]
[Annotator "RC"]
[PlyCount "89"]
[EventDate "2024.10.03"]
[EventType "team-swiss"]
[EventRounds "7"]
[EventCountry "GER"]
[SourceTitle "playchess.com"]
[Source "ChessBase"]
[SourceQuality "1"]
[TimeControl "40/5400+30:1800+30"]

1. e4 {[%emt 0:00:06]} c6 {[%emt 0:00:02]} 2. Nc3 {[%emt 0:00:11]} d5 {[%emt 0:00:03]} 3. Nf3 {[%emt 0:00:11]} dxe4 {[%emt 0:00:18]} 4. Nxe4 {[%emt 0:00:09]} Bg4 {[%emt 0:00:34]} 5. h3 {[%emt 0:00:20]} Bxf3 {[%emt 0:00:16]} 6. Qxf3 {[%emt 0:00:13]} Nd7 {[%emt 0:00:34]} 7. d4 {[%emt 0:02:34]} e6 {[%emt 0:00:07]} 8. Bd3 {[%emt 0:00:59]} Ngf6 {[%emt 0:01:15]} 9. c3 {[%emt 0:01:44]} Be7 {[%emt 0:01:24]} 10. O-O {[%emt 0:00:21]} O-O {[%emt 0:02:00]} 11. Be3 {[%emt 0:06:38]} Nxe4 {[%emt 0:59:55]} 12. Bxe4 {[%emt 0:00:30]} Nf6 {[%emt 0:00:30]} 13. Bc2 {[%emt 0:00:30]} Qd5 {[%emt 0:00:30]} 14. Qe2 {[%emt 0:00:30]} Rad8 {[%emt 0:00:30]} 15. Rfe1 {[%emt 0:00:30]} c5 {[%emt 0:00:30]} 16. Rad1 {[%emt 0:00:30]} Qc6 {[%emt 0:00:30]} 17. Rd2 {[%emt 0:00:30]} Nd5 {[%emt 0:00:30]} 18. Qh5 {[%emt 0:00:30]} g6 {[%emt 0:00:30]} 19. Qh6 {[%emt 0:00:30]} Nxe3 {[%emt 0:00:30]} 20. fxe3 {[%emt 0:00:30]} Bf6 {[%emt 0:00:30]} 21. Rf2 {[%emt 0:00:30]} Bg7 {[%emt 0:00:30]} 22. Qh4 {[%emt 0:00:30]} cxd4 {[%emt 0:00:30]} 23. exd4 {[%emt 0:00:30]} b5 {[%emt 0:00:30]} 24. Bb3 {[%emt 0:00:30]} Rd6 {[%emt 0:00:30]} 25. Kh1 {[%emt 0:00:30]} Qb6 {[%emt 0:00:30]} 26. Qe7 {[%emt 0:00:30]} a5 {[%emt 0:00:30]} 27. Ref1 {[%emt 0:00:30]} Qd8 {[%emt 0:00:30]} 28. Qa7 {[%emt 0:00:30]} Qb6 {[%emt 0:00:30]} 29. Qe7 {[%emt 0:00:30]} Qd8 {[%emt 0:00:30]} 30. Qb7 {[%emt 0:00:30]} Qb6 {[%emt 0:00:30]} 31. Qe4 {[%emt 0:00:30]} Qa6 {[%emt 0:00:30]} 32. a3 {[%emt 0:00:30]} b4 {[%emt 0:00:30]} 33. axb4 {[%emt 0:00:30]} axb4 {[%emt 0:00:30]} 34. Rf3 {[%emt 0:00:30]} Rb6 {[%emt 0:00:30]} 35. Bd1 {[%emt 0:00:30]} Rd6 {[%emt 0:00:30]} 36. Qe3 {[%emt 0:00:30]} Rd7 {[%emt 0:00:30]} 37. Qf2 {[%emt 0:00:30]} Qa7 {[%emt 0:00:30]} 38. Bb3 {[%emt 0:00:30]} e5 {[%emt 0:00:30]} 39. dxe5 {[%emt 0:00:30]} Bxe5 {[%emt 0:00:30]} 40. cxb4 {[%emt 0:00:30]} Qxf2 {[%emt 0:00:30]} 41. R3xf2 {[%emt 0:30:30]} Kg7 {[%emt 0:30:30]} 42. Bc4 {[%emt 0:00:30]} f6 {[%emt 0:00:30]} 43. b5 {[%emt 0:00:30]} Ra8 {[%emt 0:00:30]} 44. Rc2 {[%emt 0:00:30]} Rad8 {[%emt 0:00:30]} 45. b3 {[%emt 0:00:30]} 1/2-1/2

[Event "DLM Youth 2024"]
[Site "Tuebingen"]
[Date "2024.10.04"]
[Round "4"]
[White "Li, Yunqi"]
[Black "Mukazhanov, Mansur"]
[Result "1-0"]
[ECO "D03"]
[WhiteElo "2004"]
[BlackElo "1894"]
[Annotator "RC"]
[PlyCount "37"]
[EventDate "2024.10.03"]
[EventType "team-swiss"]
[EventRounds "7"]
[EventCountry "GER"]
[SourceTitle "playchess.com"]
[Source "ChessBase"]
[SourceQuality "1"]
[TimeControl "40/5400+30:1800+30"]

1. d4 {[%emt 0:00:06]} Nf6 {[%emt 0:00:11]} 2. Nf3 {[%emt 0:00:22]} g6 {[%emt 0:01:25]} 3. Bg5 {[%emt 0:00:39]} Bg7 {[%emt 0:00:17]} 4. Nbd2 {[%emt 0:00:27]} d5 {[%emt 0:00:15]} 5. e3 {[%emt 0:00:33]} Bf5 {[%emt 0:00:15]} 6. c4 {[%emt 0:02:52]} c6 {[%emt 0:05:00]} 7. cxd5 {[%emt 0:02:04]} Qxd5 {[%emt 0:01:13]} 8. Bc4 {[%emt 0:01:10]} Qa5 {[%emt 0:00:32]} 9. Qb3 {[%emt 0:03:08]} O-O {[%emt 0:00:15]} 10. Qxb7 {[%emt 0:01:36]} Nbd7 {[%emt 0:02:47]} 11. Bf4 {[%emt 0:09:31]} Nb6 {[%emt 0:17:11]} 12. O-O {[%emt 0:09:38]} Nfd5 {[%emt 0:06:30]} 13. Bg3 {[%emt 0:06:48]} Bc8 {[%emt 0:06:29]} 14. Qxc6 {[%emt 0:00:58]} Nb4 {[%emt 0:02:28]} 15. Qe4 {[%emt 0:06:14]} Bf5 {[%emt 0:00:16]} 16. Qxe7 {[%emt 0:00:42]} Rfe8 {[%emt 0:01:26]} 17. Qxf7+ {[%emt 0:04:07]} Kh8 {[%emt 0:00:22]} 18. Be5 {[%emt 0:00:35]} Bxe5 {[%emt 0:02:50]} 19. Ng5 {[%emt 0:00:09]} 1-0

[Event "DLM Youth 2024"]
[Site "Tuebingen"]
[Date "2024.10.04"]
[Round "4"]
[White "Mester, Philipp"]
[Black "Moeller, Maurin"]
[Result "1-0"]
[ECO "D70"]
[WhiteElo "1996"]
[BlackElo "2118"]
[Annotator "RC"]
[PlyCount "41"]
[EventDate "2024.10.03"]
[EventType "team-swiss"]
[EventRounds "7"]
[EventCountry "GER"]
[SourceTitle "playchess.com"]
[Source "ChessBase"]
[SourceQuality "1"]
[TimeControl "40/5400+30:1800+30"]

1. d4 {[%emt 0:00:02]} Nf6 {[%emt 0:00:15]} 2. c4 {[%emt 0:00:06]} g6 {[%emt 0:00:14]} 3. f3 {[%emt 0:00:04]} d5 {[%emt 0:00:12]} 4. cxd5 {[%emt 0:00:05]} Nxd5 {[%emt 0:00:06]} 5. e4 {[%emt 0:00:08]} Nb6 {[%emt 0:00:08]} 6. Nc3 {[%emt 0:00:08]} Bg7 {[%emt 0:00:10]} 7. Be3 {[%emt 0:00:08]} O-O {[%emt 0:00:06]} 8. Qd2 {[%emt 0:00:15]} e5 {[%emt 0:00:22]} 9. d5 {[%emt 0:00:14]} c6 {[%emt 0:00:17]} 10. h4 {[%emt 0:00:39]} cxd5 {[%emt 0:00:07]} 11. exd5 {[%emt 0:00:09]} N8d7 {[%emt 0:00:11]} 12. h5 {[%emt 0:01:16]} Nf6 {[%emt 0:00:05]} 13. hxg6 {[%emt 0:00:48]} fxg6 {[%emt 0:00:08]} 14. O-O-O {[%emt 0:00:14]} Bd7 {[%emt 0:00:21]} 15. Kb1 {[%emt 0:01:13]} Rc8 {[%emt 0:00:04]} 16. Nh3 {[%emt 0:05:58]} e4 {[%emt 0:38:08]} 17. Ng5 {[%emt 0:10:10]} Rxc3 {[%emt 0:28:32]} 18. bxc3 {[%emt 0:07:55]} Nfxd5 {[%emt 0:00:49]} 19. Bc4 {[%emt 0:02:01]} Bc6 {[%emt 0:07:58]} 20. Bb3 {[%emt 0:04:30]} exf3 {[%emt 0:05:26]} 21. Ka1 {[%emt 0:27:11]} 1-0

[Event "DLM Youth 2024"]
[Site "Tuebingen"]
[Date "2024.10.04"]
[Round "4"]
[White "Belin, Anton"]
[Black "Mohylnyi, Stepan"]
[Result "1-0"]
[ECO "B42"]
[WhiteElo "1994"]
[BlackElo "2160"]
[Annotator "RC"]
[PlyCount "67"]
[EventDate "2024.10.03"]
[EventType "team-swiss"]
[EventRounds "7"]
[EventCountry "GER"]
[SourceTitle "playchess.com"]
[Source "ChessBase"]
[SourceQuality "1"]
[TimeControl "40/5400+30:1800+30"]

1. e4 {[%emt 0:00:05]} c5 {[%emt 0:00:30]} 2. Nf3 {[%emt 0:00:35]} e6 {[%emt 0:00:11]} 3. d4 {[%emt 0:00:50]} cxd4 {[%emt 0:00:06]} 4. Nxd4 {[%emt 0:00:35]} a6 {[%emt 0:00:17]} 5. Bd3 {[%emt 0:00:49]} Bc5 {[%emt 0:00:40]} 6. Nb3 {[%emt 0:01:01]} Ba7 {[%emt 0:00:04]} 7. Qe2 {[%emt 0:01:06]} Nc6 {[%emt 0:01:04]} 8. Be3 {[%emt 0:02:26]} b5 {[%emt 0:03:10]} 9. O-O {[%emt 0:02:35]} Nf6 {[%emt 0:03:00]} 10. Bxa7 {[%emt 0:02:33]} Rxa7 {[%emt 0:00:10]} 11. c3 {[%emt 0:02:15]} O-O {[%emt 0:04:29]} 12. N1d2 {[%emt 0:02:40]} d6 {[%emt 0:09:28]} 13. f4 {[%emt 0:03:07]} Bb7 {[%emt 0:01:56]} 14. Qe3 {[%emt 0:09:03]} Ra8 {[%emt 0:05:23]} 15. e5 {[%emt 0:02:51]} dxe5 {[%emt 0:06:42]} 16. fxe5 {[%emt 0:00:34]} Nxe5 {[%emt 0:01:04]} 17. Bxh7+ {[%emt 0:00:41]} Kxh7 {[%emt 0:01:51]} 18. Qxe5 {[%emt 0:00:25]} Qe7 {[%emt 0:04:34]} 19. Rae1 {[%emt 0:02:44]} Rfd8 {[%emt 0:01:36]} 20. Nd4 {[%emt 0:01:48]} Rd5 {[%emt 0:00:43]} 21. Qg3 {[%emt 0:01:47]} Qc5 {[%emt 0:04:44]} 22. Rxf6 {[%emt 0:06:49]} gxf6 {[%emt 0:04:24]} 23. Ne4 {[%emt 0:00:34]} Qe7 {[%emt 0:01:10]} 24. Rf1 {[%emt 0:00:45]} f5 {[%emt 0:02:36]} 25. Ng5+ {[%emt 0:00:18]} Kh6 {[%emt 0:01:28]} 26. Qh4+ {[%emt 0:01:01]} Kg6 {[%emt 0:00:35]} 27. Qh7+ {[%emt 0:07:07]} Kf6 {[%emt 0:00:48]} 28. Qh6+ {[%emt 0:01:03]} Ke5 {[%emt 0:00:29]} 29. Ngxe6 {[%emt 0:07:55]} fxe6 {[%emt 0:17:51]} 30. Re1+ {[%emt 0:00:06]} Kd6 {[%emt 0:00:06]} 31. Rxe6+ {[%emt 0:00:07]} Qxe6 {[%emt 0:00:08]} 32. Qxe6+ {[%emt 0:00:20]} Kc7 {[%emt 0:00:09]} 33. h4 {[%emt 0:00:41]} Rd6 {[%emt 0:05:19]} 34. Qe7+ {[%emt 0:00:12]} 1-0

[Event "DLM Youth 2024"]
[Site "Tuebingen"]
[Date "2024.10.04"]
[Round "4"]
[White "Reuter, Elisa"]
[Black "Schulz, Tim"]
[Result "1-0"]
[ECO "B92"]
[WhiteElo "1985"]
[BlackElo "1901"]
[Annotator "RC"]
[PlyCount "47"]
[EventDate "2024.10.03"]
[EventType "team-swiss"]
[EventRounds "7"]
[EventCountry "GER"]
[SourceTitle "playchess.com"]
[Source "ChessBase"]
[SourceQuality "1"]
[TimeControl "40/5400+30:1800+30"]

1. e4 {[%emt 0:00:03]} c5 {[%emt 0:00:04]} 2. Nf3 {[%emt 0:00:03]} d6 {[%emt 0:00:09]} 3. d4 {[%emt 0:00:03]} cxd4 {[%emt 0:00:07]} 4. Nxd4 {[%emt 0:00:03]} Nf6 {[%emt 0:00:11]} 5. Nc3 {[%emt 0:00:02]} a6 {[%emt 0:00:10]} 6. Be2 {[%emt 0:00:05]} e5 {[%emt 0:00:25]} 7. Nb3 {[%emt 0:00:04]} Be6 {[%emt 0:02:38]} 8. O-O {[%emt 0:00:07]} Be7 {[%emt 0:01:08]} 9. Kh1 {[%emt 0:01:05]} O-O {[%emt 0:03:07]} 10. f4 {[%emt 0:00:03]} Qc7 {[%emt 0:05:24]} 11. f5 {[%emt 0:07:29]} Bc4 {[%emt 0:03:12]} 12. g4 {[%emt 0:02:02]} h6 {[%emt 0:13:23]} 13. g5 {[%emt 0:09:16]} Bxe2 {[%emt 0:03:54]} 14. Qxe2 {[%emt 0:00:31]} hxg5 {[%emt 0:03:21]} 15. Bxg5 {[%emt 0:00:19]} Nbd7 {[%emt 0:02:54]} 16. Qg2 {[%emt 0:02:00]} Rfc8 {[%emt 0:04:15]} 17. Rg1 {[%emt 0:03:02]} Bf8 {[%emt 0:05:27]} 18. Raf1 {[%emt 0:02:05]} Ne8 {[%emt 0:19:32]} 19. f6 {[%emt 0:09:02]} g6 {[%emt 0:03:20]} 20. Qh3 {[%emt 0:01:27]} b5 {[%emt 0:04:22]} 21. Rf3 {[%emt 0:01:52]} b4 {[%emt 0:04:32]} 22. Nd5 {[%emt 0:04:13]} Qxc2 {[%emt 0:01:49]} 23. Qh4 {[%emt 0:00:16]} Qe2 {[%emt 0:04:40]} 24. Rh3 {[%emt 0:00:49]} 1-0

[Event "DLM Youth 2024"]
[Site "Tuebingen"]
[Date "2024.10.04"]
[Round "4"]
[White "Sereda, Yaroslava"]
[Black "Buchholz, Maja Patricia"]
[Result "1-0"]
[ECO "C11"]
[WhiteElo "1972"]
[BlackElo "1988"]
[Annotator "RC"]
[PlyCount "46"]
[EventDate "2024.10.03"]
[EventType "team-swiss"]
[EventRounds "7"]
[EventCountry "GER"]
[SourceTitle "playchess.com"]
[Source "ChessBase"]
[SourceQuality "1"]
[TimeControl "40/5400+30:1800+30"]

1. e4 {[%emt 0:00:02]} e6 {[%emt 0:00:08]} 2. d4 {[%emt 0:00:05]} d5 {[%emt 0:00:05]} 3. Nc3 {[%emt 0:00:06]} Nf6 {[%emt 0:00:06]} 4. e5 {[%emt 0:00:05]} Nfd7 {[%emt 0:00:05]} 5. f4 {[%emt 0:00:14]} c5 {[%emt 0:00:14]} 6. Nf3 {[%emt 0:00:17]} Nc6 {[%emt 0:00:12]} 7. Be3 {[%emt 0:00:14]} Be7 {[%emt 0:00:12]} 8. Qd2 {[%emt 0:02:15]} O-O {[%emt 0:00:21]} 9. dxc5 {[%emt 0:02:12]} Qa5 {[%emt 0:00:31]} 10. a3 {[%emt 0:01:24]} a6 {[%emt 0:01:28]} 11. Be2 {[%emt 0:02:17]} Nxc5 {[%emt 0:01:46]} 12. O-O {[%emt 0:01:03]} Qc7 {[%emt 0:01:05]} 13. Qe1 {[%emt 0:01:32]} b5 {[%emt 0:03:07]} 14. b4 {[%emt 0:00:55]} Nd7 {[%emt 0:08:38]} 15. Bd3 {[%emt 0:02:14]} Bb7 {[%emt 0:11:41]} 16. Ne2 {[%emt 0:11:27]} Nb6 {[%emt 0:09:17]} 17. Qg3 {[%emt 0:12:14]} Nc4 {[%emt 0:02:18]} 18. Qh3 {[%emt 0:16:21]} h6 {[%emt 0:07:14]} 19. Bf2 {[%emt 0:05:34]} Nb2 {[%emt 0:05:14]} 20. Ned4 {[%emt 0:01:26]} Nxd3 {[%emt 0:06:45]} 21. cxd3 {[%emt 0:00:19]} Nxd4 {[%emt 0:02:56]} 22. Nxd4 {[%emt 0:03:03]} Rfe8 {[%emt 0:04:02]} 23. f5 {[%emt 0:15:41]} exf5 {[%emt 0:04:13]} 1-0

[Event "DLM Youth 2024"]
[Site "Tuebingen"]
[Date "2024.10.04"]
[Round "4"]
[White "Fruth, David"]
[Black "Goldmann, David"]
[Result "1-0"]
[ECO "C10"]
[WhiteElo "1966"]
[BlackElo "1969"]
[Annotator "RC"]
[PlyCount "62"]
[EventDate "2024.10.03"]
[EventType "team-swiss"]
[EventRounds "7"]
[EventCountry "GER"]
[SourceTitle "playchess.com"]
[Source "ChessBase"]
[SourceQuality "1"]
[TimeControl "40/5400+30:1800+30"]

1. e4 {[%emt 0:00:03]} e6 {[%emt 0:00:26]} 2. d4 {[%emt 0:00:02]} d5 {[%emt 0:00:21]} 3. Nc3 {[%emt 0:00:04]} dxe4 {[%emt 0:01:44]} 4. Nxe4 {[%emt 0:00:01]} Nd7 {[%emt 0:00:01]} 5. g3 {[%emt 0:00:14]} Ngf6 {[%emt 0:01:31]} 6. Nxf6+ {[%emt 0:00:06]} Nxf6 {[%emt 0:00:01]} 7. Bg2 {[%emt 0:00:22]} c5 {[%emt 0:00:54]} 8. Nf3 {[%emt 0:00:07]} cxd4 {[%emt 0:00:18]} 9. Qxd4 {[%emt 0:00:03]} Qd5 {[%emt 0:04:39]} 10. Be3 {[%emt 0:05:37]} Be7 {[%emt 0:03:02]} 11. O-O {[%emt 0:01:16]} O-O {[%emt 0:00:24]} 12. Ne5 {[%emt 0:06:45]} Qa5 {[%emt 0:01:35]} 13. Rfd1 {[%emt 0:04:00]} Rd8 {[%emt 0:02:30]} 14. Nc4 {[%emt 0:02:41]} Qc7 {[%emt 0:01:35]} 15. Qf4 {[%emt 0:06:12]} Qxf4 {[%emt 0:02:18]} 16. Rxd8+ {[%emt 0:02:05]} Bxd8 {[%emt 0:00:18]} 17. Bxf4 {[%emt 0:00:05]} Nd5 {[%emt 0:01:26]} 18. Rd1 {[%emt 0:01:39]} Bf6 {[%emt 0:00:22]} 19. Be5 {[%emt 0:03:48]} Be7 {[%emt 0:04:06]} 20. Bxd5 {[%emt 0:02:10]} exd5 {[%emt 0:00:03]} 21. Ne3 {[%emt 0:01:20]} Be6 {[%emt 0:03:09]} 22. Nxd5 {[%emt 0:00:29]} Bd8 {[%emt 0:00:02]} 23. Ne3 {[%emt 0:08:01]} f6 {[%emt 0:00:14]} 24. Bc3 {[%emt 0:02:57]} Bb6 {[%emt 0:00:21]} 25. Bd4 {[%emt 0:02:08]} Bc7 {[%emt 0:00:57]} 26. f4 {[%emt 0:00:20]} Rd8 {[%emt 0:00:18]} 27. a3 {[%emt 0:02:58]} b6 {[%emt 0:00:31]} 28. Kf2 {[%emt 0:00:09]} Kf7 {[%emt 0:00:24]} 29. c4 {[%emt 0:05:37]} g5 {[%emt 0:00:43]} 30. f5 {[%emt 0:01:03]} Bxc4 {[%emt 0:03:02]} 31. Nxc4 {[%emt 0:00:28]} Be5 {[%emt 0:00:13]} 1-0

[Event "DLM Youth 2024"]
[Site "Tuebingen"]
[Date "2024.10.04"]
[Round "4"]
[White "Mader, Fabian"]
[Black "Malinowsky, Levi"]
[Result "1/2-1/2"]
[ECO "B90"]
[WhiteElo "1963"]
[BlackElo "2065"]
[Annotator "RC"]
[PlyCount "75"]
[EventDate "2024.10.03"]
[EventType "team-swiss"]
[EventRounds "7"]
[EventCountry "GER"]
[SourceTitle "playchess.com"]
[Source "ChessBase"]
[SourceQuality "1"]
[TimeControl "40/5400+30:1800+30"]

1. e4 {[%emt 0:00:03]} c5 {[%emt 0:00:08]} 2. Nf3 {[%emt 0:00:09]} d6 {[%emt 0:00:06]} 3. d4 {[%emt 0:00:27]} cxd4 {[%emt 0:00:09]} 4. Nxd4 {[%emt 0:00:07]} Nf6 {[%emt 0:00:11]} 5. Nc3 {[%emt 0:00:12]} a6 {[%emt 0:00:08]} 6. f3 {[%emt 0:00:53]} e5 {[%emt 0:00:43]} 7. Nb3 {[%emt 0:00:05]} Be6 {[%emt 0:01:03]} 8. Be3 {[%emt 0:00:29]} h5 {[%emt 0:01:21]} 9. Qd2 {[%emt 0:01:23]} Nbd7 {[%emt 0:00:44]} 10. Nd5 {[%emt 0:01:54]} Bxd5 {[%emt 0:00:59]} 11. exd5 {[%emt 0:00:06]} g6 {[%emt 0:00:44]} 12. Be2 {[%emt 0:04:11]} Bg7 {[%emt 0:04:33]} 13. O-O-O {[%emt 0:08:05]} O-O {[%emt 0:03:45]} 14. h4 {[%emt 0:02:14]} Qc7 {[%emt 0:17:48]} 15. g4 {[%emt 0:16:35]} Rac8 {[%emt 0:03:47]} 16. Na1 {[%emt 0:04:38]} Nc5 {[%emt 0:08:32]} 17. Bh6 {[%emt 0:06:23]} b5 {[%emt 0:09:42]} 18. Rdg1 {[%emt 0:08:05]} hxg4 {[%emt 0:14:15]} 19. h5 {[%emt 0:12:42]} gxf3 {[%emt 0:03:57]} 20. Bxg7 {[%emt 0:01:08]} Kxg7 {[%emt 0:00:44]} 21. hxg6 {[%emt 0:01:56]} Rh8 {[%emt 0:00:46]} 22. gxf7+ {[%emt 0:01:32]} Kxf7 {[%emt 0:00:14]} 23. Bxf3 {[%emt 0:02:00]} Qd7 {[%emt 0:03:33]} 24. Nb3 {[%emt 0:04:26]} Nxb3+ {[%emt 0:02:28]} 25. axb3 {[%emt 0:00:06]} Qf5 {[%emt 0:01:18]} 26. Qf2 {[%emt 0:07:09]} Rxc2+ {[%emt 0:05:05]} 27. Qxc2 {[%emt 0:00:08]} Rc8 {[%emt 0:00:11]} 28. Be4 {[%emt 0:05:22]} Rxc2+ {[%emt 0:01:31]} 29. Bxc2 {[%emt 0:00:05]} Qf3 {[%emt 0:02:31]} 30. Rf1 {[%emt 0:01:32]} Qe3+ {[%emt 0:00:05]} 31. Kb1 {[%emt 0:00:04]} Ke7 {[%emt 0:01:04]} 32. Rfg1 {[%emt 0:04:18]} Qf3 {[%emt 0:04:43]} 33. Rh6 {[%emt 0:04:15]} Qe3 {[%emt 0:03:44]} 34. Rhh1 {[%emt 0:00:06]} Qf3 {[%emt 0:05:03]} 35. Rh6 {[%emt 0:00:14]} Nxd5 {[%emt 0:01:45]} 36. Rh7+ {[%emt 0:00:43]} Kf8 {[%emt 0:00:08]} 37. Rh8+ {[%emt 0:00:05]} Kf7 {[%emt 0:00:29]} 38. Rh7+ {[%emt 0:00:06]} 1/2-1/2